bitfinex-derivatives/quotes_BTCF0:USTF0_20251230
["timestamp","ask_amount","ask_price","bid_price","bid_amount"]
[1767092431843,0.057,87978.0,87965.0,0.0113826]
[1767092432349,0.057,87978.0,87967.0,0.0113823]
[1767092432734,0.00017046,87981.0,87967.0,0.0113823]
[1767092432947,0.057,87980.0,87967.0,0.0113823]
[1767092433150,0.057,87980.0,87964.0,0.0683827]
[1767092434350,0.057,87980.0,87966.0,0.0113824]
[1767092435053,0.21073734,87980.0,87966.0,0.0113824]
[1767092435352,0.057,87980.0,87966.0,0.0113824]
[1767092435552,0.21073734,87980.0,87966.0,0.0113824]
[1767092436155,0.15373734,87980.0,87966.0,0.0113824]
[1767092436349,0.057,87980.0,87966.0,0.0113824]
[1767092436648,0.21073734,87980.0,87966.0,0.0113824]
[1767092436961,0.21073734,87980.0,87968.0,0.0113822]
[1767092437151,0.057,87980.0,87968.0,0.0113822]
[1767092437346,0.21073734,87980.0,87968.0,0.0113822]
[1767092438048,0.02717889,87979.0,87968.0,0.0113822]
[1767092438249,0.02717889,87978.0,87968.0,0.0113822]
[1767092438554,0.02717889,87977.0,87968.0,0.0113822]
[1767092438745,0.00017046,87981.0,87968.0,0.0113822]
[1767092439050,0.02717815,87980.0,87968.0,0.0113822]
[1767092439246,0.02717815,87979.0,87965.0,0.0113826]
[1767092439452,0.02717815,87978.0,87967.0,0.0113824]
[1767092439647,0.02717815,87977.0,87967.0,0.0113824]
[1767092439860,0.057,87980.0,87967.0,0.0113824]
[1767092440050,0.02717785,87979.0,87967.0,0.0113824]
[1767092440354,0.02717785,87978.0,87967.0,0.0113824]
[1767092440654,0.02717785,87977.0,87967.0,0.0113824]
[1767092440852,0.057,87980.0,87967.0,0.0113824]
[1767092441060,0.02724049,87979.0,87967.0,0.0113824]
[1767092441244,0.02724049,87978.0,87967.0,0.0113824]
[1767092441442,0.02724049,87977.0,87969.0,0.0113821]
[1767092441643,0.15373734,88000.0,87979.0,0.0113807]
[1767092441849,0.30747468,87990.0,87965.0,0.11367188]
[1767092442049,0.15373734,87980.0,87963.0,0.057]
[1767092442352,0.057,87985.0,87971.0,0.0113818]
[1767092442656,0.0113798,87987.0,87971.0,0.0113818]
[1767092442657,0.057,87986.0,87971.0,0.0113819]
[1767092442849,0.0113801,87985.0,87969.0,0.01155256]
[1767092443049,0.15373734,87980.0,87969.0,0.01155256]
[1767092443453,0.0113801,87985.0,87969.0,0.01155256]
[1767092443454,0.0113804,87983.0,87969.0,0.00017046]
[1767092443760,0.15373734,87980.0,87969.0,0.00017046]
[1767092444557,0.15373734,87980.0,87970.0,0.011382]
[1767092444953,0.00017046,87987.0,87974.0,0.0113814]
[1767092445154,0.05717046,87987.0,87976.0,0.0113812]
[1767092445756,0.05717046,87987.0,87969.0,0.00017046]
[1767092446146,0.0113802,87984.0,87969.0,0.00017046]
[1767092446352,0.05717046,87987.0,87969.0,0.00017046]
[1767092448355,0.0113804,87983.0,87969.0,0.00017046]
[1767092453258,0.0113807,87981.0,87969.0,0.00017046]
[1767092457966,0.057,87986.0,87969.0,0.00017046]
[1767092458265,0.0113806,87981.0,87969.0,0.00017046]
[1767092461870,0.0113803,87984.0,87969.0,0.01155256]
[1767092462074,0.02706638,87983.0,87969.0,0.01155256]
[1767092462377,0.02706638,87982.0,87969.0,0.01155256]
[1767092462573,0.0113803,87984.0,87969.0,0.01155256]
[1767092462769,0.02706698,87983.0,87971.0,0.0113819]
[1767092462974,0.00017046,87987.0,87969.0,0.00017046]
[1767092463174,0.02706697,87986.0,87969.0,0.00017046]
[1767092463471,0.02706697,87985.0,87975.0,0.0113813]
[1767092463677,0.02706697,87984.0,87975.0,0.0113813]
[1767092463867,0.00017046,87987.0,87977.0,0.0113811]
[1767092464067,0.1080987,87996.0,87973.0,0.057]
[1767092464272,0.1650987,87996.0,87979.0,0.0113808]
[1767092464473,0.0113789,87994.0,87979.0,0.0113808]
[1767092465472,0.0113792,87992.0,87978.0,0.0113809]
[1767092470083,0.00017046,87995.0,87973.0,0.057]
[1767092470286,0.00017046,87995.0,87975.0,0.0113813]
[1767092470987,0.0113796,87989.0,87975.0,0.0113813]
[1767092472279,0.00017046,87995.0,87973.0,0.057]
[1767092472485,0.0113803,87984.0,87973.0,0.057]
[1767092472978,0.0113805,87982.0,87973.0,0.057]
[1767092474079,0.0113801,87985.0,87973.0,0.057]
[1767092476084,0.0113803,87983.0,87973.0,0.057]
[1767092478589,0.00017046,87995.0,87973.0,0.057]
[1767092478788,0.02675157,87994.0,87973.0,0.057]
[1767092478990,0.02675157,87993.0,87973.0,0.057]
[1767092479184,0.00017046,87995.0,87973.0,0.057]
[1767092479185,0.02675157,87992.0,87973.0,0.057]
[1767092479388,0.01138,87986.0,87973.0,0.057]
[1767092479578,0.02675157,87985.0,87973.0,0.057]
[1767092484197,0.0113805,87982.0,87973.0,0.057]
[1767092485390,0.0113808,87980.0,87973.0,0.057]
[1767092486394,0.011381,87978.0,87969.0,0.05717046]
[1767092488103,0.02675127,87977.0,87969.0,0.05717046]
[1767092488301,0.02675127,87976.0,87969.0,0.05717046]
[1767092488498,0.02675127,87975.0,87969.0,0.05717046]
[1767092488699,0.011381,87978.0,87969.0,0.05717046]
[1767092488892,0.02674923,87977.0,87969.0,0.05717046]
[1767092489093,0.02674923,87976.0,87969.0,0.05717046]
[1767092489394,0.02674923,87975.0,87969.0,0.05717046]
[1767092489593,0.011381,87978.0,87969.0,0.05717046]
[1767092489793,0.02674807,87977.0,87969.0,0.05717046]
[1767092489993,0.02674807,87976.0,87969.0,0.05717046]
[1767092490193,0.02674807,87975.0,87969.0,0.05717046]
[1767092490391,0.011381,87978.0,87969.0,0.05717046]
[1767092490686,0.02674664,87977.0,87969.0,0.05717046]
[1767092490891,0.02674664,87976.0,87969.0,0.05717046]
[1767092491091,0.02674664,87975.0,87969.0,0.05717046]
[1767092491293,0.011381,87978.0,87969.0,0.05717046]
[1767092491600,0.02674553,87977.0,87969.0,0.05717046]
[1767092491797,0.02674553,87976.0,87969.0,0.05717046]
[1767092492099,0.02674553,87975.0,87955.0,0.057]
[1767092492306,0.02674553,87974.0,87955.0,0.057]
[1767092492596,0.0113821,87970.0,87955.0,0.057]
[1767092492802,0.02674553,87969.0,87955.0,0.057]
[1767092493095,0.02702586,87968.0,87955.0,0.057]
[1767092493400,0.02702586,87967.0,87955.0,0.057]
[1767092493591,0.02702586,87966.0,87955.0,0.057]
[1767092493789,0.0113821,87970.0,87955.0,0.057]
[1767092493993,0.02701732,87969.0,87955.0,0.057]
[1767092494295,0.02701732,87968.0,87955.0,0.057]
[1767092494495,0.02701732,87967.0,87955.0,0.057]
[1767092494794,0.02701732,87966.0,87955.0,0.057]
[1767092494999,0.0113821,87970.0,87955.0,0.057]
[1767092495202,0.02701181,87969.0,87955.0,0.057]
[1767092495391,0.02701181,87968.0,87955.0,0.057]
[1767092495590,0.02701181,87967.0,87955.0,0.057]
[1767092495899,0.02701181,87966.0,87953.0,0.00017046]
[1767092496096,0.02701181,87965.0,87953.0,0.00017046]
[1767092496298,0.02701181,87964.0,87953.0,0.00017046]
[1767092496509,0.02701181,87963.0,87954.0,0.0105]
[1767092496805,0.02701181,87962.0,87954.0,0.0105]
[1767092497102,0.011382,87970.0,87954.0,0.0105]
[1767092497402,0.02699452,87969.0,87954.0,0.0105]
[1767092497605,0.12371452,87968.0,87951.0,0.0113845]
[1767092497805,0.02699452,87967.0,87951.0,0.0113845]
[1767092498205,0.09672,87968.0,87951.0,0.0113845]
[1767092498596,0.09672,87968.0,87951.0,0.01155496]
[1767092500607,0.1081023,87968.0,87951.0,0.00017046]
[1767092500801,0.02704211,87967.0,87951.0,0.00017046]
[1767092501002,0.0113826,87966.0,87951.0,0.00017046]
[1767092501405,0.0113832,87961.0,87934.0,0.09068585]
[1767092501716,0.0113835,87959.0,87942.0,0.0113856]
[1767092501899,0.09672,87958.0,87942.0,0.0113856]
[1767092507811,0.0113837,87957.0,87941.0,0.0113857]
[1767092510508,0.011384,87955.0,87941.0,0.0113857]
[1767092510805,0.0113839,87956.0,87941.0,0.0113857]
[1767092511199,0.0113835,87959.0,87933.0,0.057]
[1767092511396,0.057,87958.0,87949.0,0.0113847]
[1767092511601,0.0113825,87967.0,87953.0,0.0113842]
[1767092511799,0.057,87965.0,87953.0,0.0113842]
[1767092513804,0.057,87965.0,87954.0,0.011384]
[1767092514610,0.15387576,87964.0,87954.0,0.011384]
[1767092515001,0.15387576,87964.0,87942.0,0.0113856]
[1767092515201,0.15387576,87960.0,87942.0,0.0113856]
[1767092516005,0.15387576,87960.0,87953.0,0.0113842]
[1767092516209,0.15387576,87963.0,87953.0,0.0113842]
[1767092516407,0.057,87965.0,87953.0,0.0113842]
[1767092518213,0.02703787,87964.0,87953.0,0.0113842]
[1767092518514,0.057,87965.0,87953.0,0.0113842]
[1767092518710,0.02703781,87964.0,87953.0,0.0113842]
[1767092518909,0.057,87965.0,87953.0,0.0113842]
[1767092519110,0.02703781,87964.0,87953.0,0.0113842]
[1767092519311,0.057,87965.0,87953.0,0.0113842]
[1767092519610,0.02704343,87964.0,87953.0,0.0113842]
[1767092519808,0.057,87965.0,87953.0,0.0113842]
[1767092520007,0.02704337,87964.0,87953.0,0.0113842]
[1767092520209,0.0270498,87963.0,87953.0,0.0113842]
[1767092520406,0.057,87965.0,87953.0,0.0113842]
[1767092520605,0.02704978,87964.0,87953.0,0.0113842]
[1767092520808,0.02704978,87963.0,87955.0,0.0113839]
[1767092521009,0.057,87965.0,87955.0,0.0113839]
[1767092521209,0.02704971,87964.0,87955.0,0.0113839]
[1767092521409,0.02704971,87963.0,87955.0,0.0113839]
[1767092521612,0.01155236,87971.0,87944.0,0.0113854]
[1767092521811,0.02705914,87970.0,87950.0,0.15387576]
[1767092522007,0.02705914,87969.0,87961.0,0.0113831]
[1767092522212,0.02705914,87969.0,87951.0,0.09676]
[1767092522213,0.05717046,87971.0,87951.0,0.09676]
[1767092522411,0.02706605,87970.0,87951.0,0.09676]
[1767092522609,0.02706605,87969.0,87951.0,0.09676]
[1767092522805,0.05717046,87971.0,87951.0,0.09676]
[1767092523109,0.02706606,87970.0,87951.0,0.09676]
[1767092523312,0.02706606,87969.0,87958.0,0.0113835]
[1767092523610,0.05717046,87971.0,87958.0,0.0113835]
[1767092523809,0.0270679,87970.0,87958.0,0.0113835]
[1767092524010,0.0270679,87969.0,87958.0,0.0113835]
[1767092524209,0.02706917,87968.0,87958.0,0.0113835]
[1767092524410,0.05717046,87971.0,87958.0,0.0113835]
[1767092524616,0.02706917,87970.0,87958.0,0.0113835]
[1767092524914,0.02706917,87969.0,87958.0,0.0113835]
[1767092525117,0.05717046,87971.0,87958.0,0.0113835]
[1767092525317,0.02706828,87970.0,87958.0,0.0113835]
[1767092525517,0.02706828,87969.0,87958.0,0.0113835]
[1767092525717,0.02706828,87968.0,87958.0,0.0113835]
[1767092526017,0.05717046,87971.0,87958.0,0.0113835]
[1767092526316,0.02706947,87970.0,87958.0,0.0113835]
[1767092526518,0.02706947,87969.0,87958.0,0.0113835]
[1767092526717,0.02706947,87968.0,87958.0,0.0113835]
[1767092526919,0.05717046,87971.0,87958.0,0.0113835]
[1767092527113,0.02706828,87970.0,87958.0,0.0113835]
[1767092527313,0.02706828,87969.0,87958.0,0.0113835]
[1767092527514,0.02706828,87968.0,87958.0,0.0113835]
[1767092527715,0.05717046,87971.0,87958.0,0.0113835]
[1767092528014,0.02706739,87970.0,87958.0,0.0113835]
[1767092528218,0.02706739,87969.0,87958.0,0.0113835]
[1767092528417,0.02706739,87968.0,87958.0,0.0113835]
[1767092528619,0.02706739,87967.0,87958.0,0.0113835]
[1767092528818,0.02706739,87966.0,87958.0,0.0113835]
[1767092529021,0.02706739,87965.0,87958.0,0.0113835]
[1767092529328,0.02706739,87964.0,87958.0,0.0113835]
[1767092529626,9e-08,87963.0,87960.0,0.0113833]
[1767092529827,0.05717046,87971.0,87960.0,0.0113833]
[1767092531732,0.05717046,87971.0,87957.0,0.0113836]
[1767092533329,0.011382,87970.0,87957.0,0.0113836]
[1767092533530,0.011382,87970.0,87954.0,0.011384]
[1767092534228,0.16525776,87970.0,87954.0,0.011384]
[1767092535231,0.16525776,87970.0,87956.0,0.0113838]
[1767092536929,0.011382,87970.0,87956.0,0.0113838]
[1767092541845,0.02691334,87969.0,87956.0,0.0113838]
[1767092542146,0.02691334,87968.0,87956.0,0.0113838]
[1767092542337,0.02691334,87967.0,87956.0,0.0113838]
[1767092542632,0.011382,87970.0,87956.0,0.0113838]
[1767092542832,0.02691658,87969.0,87956.0,0.0113838]
[1767092543035,0.02691658,87968.0,87956.0,0.0113838]
[1767092543238,0.02691658,87967.0,87956.0,0.0113838]
[1767092543440,0.011382,87970.0,87956.0,0.0113838]
[1767092543741,0.02692186,87969.0,87956.0,0.0113838]
[1767092543942,0.02692186,87968.0,87956.0,0.0113838]
[1767092544249,0.02692186,87967.0,87956.0,0.0113838]
[1767092544546,0.011382,87970.0,87956.0,0.0113838]
[1767092544747,0.02692386,87969.0,87956.0,0.0113838]
[1767092544945,0.02692386,87968.0,87956.0,0.0113838]
[1767092545146,0.02692386,87967.0,87956.0,0.0113838]
[1767092545346,0.02692386,87966.0,87956.0,0.0113838]
[1767092545548,0.011382,87970.0,87956.0,0.0113838]
[1767092545844,0.0113826,87966.0,87953.0,0.0113841]
[1767092546753,0.0113822,87969.0,87953.0,0.0113841]
[1767092547050,0.02692742,87968.0,87953.0,0.0113841]
[1767092547251,0.02692742,87967.0,87953.0,0.0113841]
[1767092547447,0.02692742,87966.0,87953.0,0.0113841]
[1767092547649,0.0113822,87969.0,87953.0,0.0113841]
[1767092547839,0.02693003,87968.0,87953.0,0.0113841]
[1767092548039,0.02693003,87967.0,87953.0,0.0113841]
[1767092548352,0.02693003,87966.0,87953.0,0.0113841]
[1767092549644,0.0113827,87965.0,87951.0,0.09676]
[1767092549953,0.02693003,87964.0,87951.0,0.09676]
[1767092550757,0.011383,87963.0,87951.0,0.09676]
[1767092551953,0.0113826,87966.0,87951.0,0.09676]
[1767092552153,0.02694242,87965.0,87951.0,0.09676]
[1767092552349,0.02694242,87964.0,87951.0,0.09676]
[1767092552550,0.02694242,87963.0,87951.0,0.09676]
[1767092552755,0.0113826,87966.0,87951.0,0.09676]
[1767092553057,0.02694176,87965.0,87951.0,0.09676]
[1767092553243,0.02694176,87964.0,87951.0,0.09676]
[1767092553444,0.02694176,87963.0,87951.0,0.09676]
[1767092553644,0.0113826,87966.0,87951.0,0.09676]
[1767092553945,0.15387576,87970.0,87951.0,0.09676]
[1767092553946,0.0113828,87964.0,87951.0,0.09676]
[1767092554149,0.02694136,87963.0,87951.0,0.09676]
[1767092558657,0.0113831,87962.0,87951.0,0.09676]
[1767092559454,0.15387576,87961.0,87951.0,0.09676]
[1767092559651,0.15387576,87961.0,87946.0,0.011385]
[1767092559860,0.15387576,87961.0,87946.0,0.057]
[1767092560048,0.15387576,87961.0,87947.0,0.011385]
[1767092560250,0.15387576,87960.0,87947.0,0.011385]
[1767092560451,0.0113831,87962.0,87947.0,0.011385]
[1767092561462,0.0113827,87965.0,87949.0,0.0113847]
[1767092561656,0.02702124,87964.0,87949.0,0.0113847]
[1767092561857,0.02702124,87963.0,87949.0,0.0113847]
[1767092562060,0.02702124,87962.0,87949.0,0.0113847]
[1767092562255,0.0113827,87965.0,87949.0,0.0113847]
[1767092562459,0.02702092,87964.0,87949.0,0.0113847]
[1767092562656,0.03840392,87963.0,87949.0,0.0113847]
[1767092562855,0.02702092,87962.0,87949.0,0.0113847]
[1767092563061,0.011383,87963.0,87949.0,0.0113847]
[1767092563260,0.0270207,87962.0,87949.0,0.0113847]
[1767092563562,0.15387576,87960.0,87949.0,0.0113847]
[1767092570568,0.011383,87963.0,87949.0,0.0113847]
[1767092570770,0.02702342,87962.0,87949.0,0.0113847]
[1767092570967,0.011383,87963.0,87949.0,0.0113847]
[1767092571159,0.02702342,87962.0,87949.0,0.0113847]
[1767092571360,0.011383,87963.0,87949.0,0.0113847]
[1767092571558,0.02702196,87962.0,87949.0,0.0113847]
[1767092571759,0.011383,87963.0,87949.0,0.0113847]
[1767092571964,0.02702004,87962.0,87949.0,0.0113847]
[1767092572164,0.011383,87963.0,87949.0,0.0113847]
[1767092572462,0.02702055,87962.0,87949.0,0.0113847]
[1767092572665,0.15387576,87960.0,87949.0,0.0113847]
[1767092576477,0.011383,87963.0,87949.0,0.0113847]
[1767092576673,0.02702369,87962.0,87949.0,0.0113847]
[1767092576867,0.011383,87963.0,87949.0,0.0113847]
[1767092577068,0.02702369,87962.0,87949.0,0.0113847]
[1767092577373,0.011383,87963.0,87949.0,0.0113847]
[1767092577573,0.02702466,87962.0,87949.0,0.0113847]
[1767092577776,0.011383,87963.0,87949.0,0.0113847]
[1767092577976,0.02702434,87962.0,87949.0,0.0113847]
[1767092578178,0.02702505,87961.0,87949.0,0.0113847]
[1767092578477,0.02702505,87960.0,87949.0,0.0113847]
[1767092578676,0.011383,87963.0,87949.0,0.0113847]
[1767092578877,0.02702501,87962.0,87949.0,0.0113847]
[1767092579070,0.02702501,87961.0,87949.0,0.0113847]
[1767092579275,0.02702501,87960.0,87949.0,0.0113847]
[1767092579483,0.011383,87963.0,87949.0,0.0113847]
[1767092579675,0.02702581,87962.0,87949.0,0.0113847]
[1767092579876,0.02702581,87961.0,87949.0,0.0113847]
[1767092580179,0.02702581,87960.0,87949.0,0.0113847]
[1767092580374,0.011383,87963.0,87949.0,0.0113847]
[1767092580677,0.02702637,87962.0,87949.0,0.0113847]
[1767092580976,0.02702637,87961.0,87949.0,0.0113847]
[1767092581170,0.02702637,87960.0,87949.0,0.0113847]
[1767092581377,0.011383,87963.0,87949.0,0.0113847]
[1767092581578,0.02702697,87962.0,87949.0,0.0113847]
[1767092581779,0.02702697,87961.0,87949.0,0.0113847]
[1767092582075,0.057,87964.0,87952.0,0.0113843]
[1767092582076,0.02702697,87960.0,87952.0,0.0113843]
[1767092582279,0.057,87964.0,87949.0,0.0113847]
[1767092582469,0.02702757,87963.0,87949.0,0.0113847]
[1767092582674,0.02702757,87962.0,87949.0,0.0113847]
[1767092582968,0.02702757,87961.0,87949.0,0.0113847]
[1767092583168,0.02702757,87960.0,87949.0,0.0113847]
[1767092583380,0.057,87964.0,87949.0,0.0113847]
[1767092583678,0.0270289,87963.0,87949.0,0.0113847]
[1767092583977,0.0270289,87962.0,87949.0,0.0113847]
[1767092584176,0.0270289,87961.0,87949.0,0.0113847]
[1767092584376,0.0270289,87960.0,87949.0,0.0113847]
[1767092584577,0.057,87964.0,87949.0,0.0113847]
[1767092584878,0.02702828,87963.0,87946.0,0.057]
[1767092585064,0.02702828,87962.0,87946.0,0.057]
[1767092585268,0.02702828,87961.0,87946.0,0.057]
[1767092585467,0.02702828,87960.0,87946.0,0.057]
[1767092585679,0.057,87964.0,87946.0,0.057]
[1767092585882,0.02702867,87963.0,87951.0,0.0113844]
[1767092586080,0.02702867,87962.0,87951.0,0.0113844]
[1767092586284,0.02702867,87961.0,87951.0,0.0113844]
[1767092586475,0.02702867,87960.0,87951.0,0.0113844]
[1767092586675,0.057,87964.0,87951.0,0.0113844]
[1767092586876,0.02702852,87963.0,87951.0,0.0113844]
[1767092587073,0.02702852,87962.0,87951.0,0.0113844]
[1767092587273,0.02702852,87961.0,87951.0,0.0113844]
[1767092587474,0.02702852,87960.0,87951.0,0.0113844]
[1767092587675,0.057,87964.0,87951.0,0.0113844]
[1767092587876,0.02702839,87963.0,87951.0,0.0113844]
[1767092588177,0.02702839,87962.0,87951.0,0.0113844]
[1767092588376,0.057,87964.0,87951.0,0.0113844]
[1767092588573,0.02702846,87963.0,87951.0,0.0113844]
[1767092588784,0.02702846,87962.0,87951.0,0.0113844]
[1767092588985,0.057,87964.0,87951.0,0.0113844]
[1767092589287,0.02702846,87963.0,87951.0,0.0113844]
[1767092589470,0.02702846,87962.0,87951.0,0.0113844]
[1767092589783,0.057,87964.0,87951.0,0.0113844]
[1767092589976,0.0270286,87963.0,87951.0,0.0113844]
[1767092590178,0.0270286,87962.0,87951.0,0.0113844]
[1767092590481,0.057,87964.0,87951.0,0.0113844]
[1767092590678,0.02715328,87963.0,87951.0,0.0113844]
[1767092590879,0.02715328,87962.0,87951.0,0.0113844]
[1767092591078,0.057,87964.0,87951.0,0.0113844]
[1767092591385,0.02715334,87963.0,87951.0,0.0113844]
[1767092591584,0.02715334,87962.0,87951.0,0.0113844]
[1767092591780,0.057,87964.0,87951.0,0.0113844]
[1767092591981,0.02715331,87963.0,87951.0,0.0113844]
[1767092592280,0.011382,87970.0,87955.0,0.0113839]
[1767092592678,0.057,87969.0,87957.0,0.0113836]
[1767092592886,0.00017046,87971.0,87957.0,0.0113836]
[1767092593080,0.05717046,87971.0,87957.0,0.0113836]
[1767092595071,0.06855246,87971.0,87957.0,0.0113836]
[1767092597788,0.01155246,87971.0,87957.0,0.0113836]
[1767092597985,0.06855246,87971.0,87957.0,0.0113836]
[1767092602388,0.00017046,87971.0,87960.0,0.0113833]
[1767092602692,0.00017046,87971.0,87952.0,0.09672]
[1767092603194,0.00017046,87971.0,87960.0,0.0113832]
[1767092604295,0.02702614,87970.0,87960.0,0.0113832]
[1767092604496,0.02702614,87969.0,87960.0,0.0113832]
[1767092604689,0.02702614,87968.0,87960.0,0.0113832]
[1767092604890,0.02702614,87967.0,87960.0,0.0113832]
[1767092605090,0.02702614,87966.0,87960.0,0.0113832]
[1767092605291,0.00017046,87971.0,87960.0,0.0113832]
[1767092610302,0.00017046,87971.0,87952.0,0.09672]
[1767092611296,0.00017046,87971.0,87961.0,0.0113831]
[1767092615507,0.00017046,87971.0,87958.0,0.0113835]
[1767092617006,0.01155236,87971.0,87958.0,0.0113835]
[1767092617211,0.02698096,87970.0,87958.0,0.0113835]
[1767092617413,0.02698096,87969.0,87957.0,0.0113837]
[1767092617604,0.02698096,87968.0,87957.0,0.0113837]
[1767092617804,0.02698096,87967.0,87957.0,0.0113837]
[1767092618104,0.02698096,87966.0,87957.0,0.0113837]
[1767092618406,0.02698096,87965.0,87957.0,0.0113837]
[1767092618703,0.01155236,87971.0,87957.0,0.0113837]
[1767092618902,0.02698203,87970.0,87957.0,0.0113837]
[1767092619211,0.02698203,87969.0,87957.0,0.0113837]
[1767092619403,0.02698203,87968.0,87957.0,0.0113837]
[1767092619602,0.02698203,87967.0,87957.0,0.0113837]
[1767092619802,0.02698203,87966.0,87957.0,0.0113837]
[1767092620006,0.02698203,87965.0,87957.0,0.0113837]
[1767092620205,0.01155236,87971.0,87957.0,0.0113837]
[1767092620510,0.02698463,87970.0,87957.0,0.0113837]
[1767092620704,0.02698463,87969.0,87957.0,0.0113837]
[1767092620904,0.02698463,87968.0,87957.0,0.0113837]
[1767092621104,0.02698463,87967.0,87957.0,0.0113837]
[1767092621302,0.02698463,87966.0,87957.0,0.0113837]
[1767092621499,0.02698463,87965.0,87957.0,0.0113837]
[1767092621711,0.00017046,87971.0,87959.0,0.0113834]
[1767092621900,0.02680041,87970.0,87959.0,0.0113834]
[1767092622103,0.02680041,87969.0,87959.0,0.0113834]
[1767092622304,0.02680041,87968.0,87959.0,0.0113834]
[1767092622513,0.02680041,87967.0,87959.0,0.0113834]
[1767092622812,0.02680041,87966.0,87959.0,0.0113834]
[1767092623111,0.02680041,87965.0,87959.0,0.0113834]
[1767092623316,0.00017046,87971.0,87959.0,0.0113834]
[1767092623610,0.02680384,87970.0,87959.0,0.0113834]
[1767092623810,0.02680384,87969.0,87959.0,0.0113834]
[1767092624011,0.02680384,87968.0,87959.0,0.0113834]
[1767092624310,0.02680384,87967.0,87959.0,0.0113834]
[1767092624507,0.02680384,87966.0,87959.0,0.0113834]
[1767092624811,0.02680384,87965.0,87959.0,0.0113834]
[1767092625012,0.00017046,87971.0,87959.0,0.0113834]
[1767092625215,0.02680477,87970.0,87959.0,0.0113834]
[1767092625408,0.02680477,87969.0,87959.0,0.0113834]
[1767092625608,0.02680477,87968.0,87959.0,0.0113834]
[1767092625808,0.02680477,87967.0,87959.0,0.0113834]
[1767092626005,0.02680477,87966.0,87959.0,0.0113834]
[1767092626203,0.02680477,87965.0,87959.0,0.0113834]
[1767092626405,0.00017046,87971.0,87959.0,0.0113834]
[1767092626601,0.02680556,87970.0,87959.0,0.0113834]
[1767092626807,0.02680556,87969.0,87959.0,0.0113834]
[1767092627006,0.02680556,87968.0,87959.0,0.0113834]
[1767092627206,0.02680556,87967.0,87959.0,0.0113834]
[1767092627408,0.02680556,87966.0,87959.0,0.0113834]
[1767092627613,0.02680556,87965.0,87959.0,0.0113834]
[1767092627911,0.00017046,87971.0,87959.0,0.0113834]
[1767092628217,0.02680705,87970.0,87959.0,0.0113834]
[1767092628415,0.02680705,87969.0,87959.0,0.0113834]
[1767092628715,0.00017046,87971.0,87959.0,0.0113834]
[1767092628716,0.02680705,87968.0,87959.0,0.0113834]
[1767092629015,0.02680705,87967.0,87959.0,0.0113834]
[1767092629217,0.02680705,87966.0,87959.0,0.0113834]
[1767092629413,0.02680705,87965.0,87959.0,0.0113834]
[1767092629613,0.02680705,87964.0,87959.0,0.0113834]
[1767092629814,0.02680705,87963.0,87959.0,0.0113834]
[1767092630015,5e-08,87962.0,87959.0,0.0113834]
[1767092630216,0.00017046,87971.0,87959.0,0.0113834]
[1767092636524,0.15383283,87970.0,87959.0,0.0113834]
[1767092638326,0.00017046,87971.0,87959.0,0.0113834]
[1767092638925,0.0683813,87976.0,87956.0,0.00017046]
[1767092639621,0.057,87981.0,87966.0,0.15383283]
[1767092639826,0.057,87981.0,87960.0,0.15383283]
[1767092640018,0.00017046,87979.0,87960.0,0.15383283]
[1767092641316,0.00017046,87979.0,87968.0,0.0113822]
[1767092641713,0.00017046,87979.0,87970.0,0.011382]
[1767092642017,0.00017046,87979.0,87958.0,0.0113835]
[1767092642018,0.02668086,87978.0,87969.0,0.15383283]
[1767092642225,0.0113804,87983.0,87969.0,0.15383283]
[1767092642425,0.01138,87986.0,87972.0,0.0113817]
[1767092642625,0.0113803,87984.0,87970.0,0.011382]
[1767092644025,0.00017046,87986.0,87970.0,0.15383283]
[1767092644229,0.0113809,87979.0,87966.0,0.0113825]
[1767092645630,0.0113809,87979.0,87965.0,0.15372]
[1767092646330,0.0113812,87977.0,87965.0,0.15372]
[1767092647232,0.0113814,87975.0,87965.0,0.15372]
[1767092648230,0.0113814,87975.0,87966.0,0.057]
[1767092656634,0.0113816,87973.0,87966.0,0.057]
[1767092657136,0.0113813,87976.0,87966.0,0.057]
[1767092657737,0.0113815,87974.0,87966.0,0.057]
[1767092677046,0.057,87979.0,87966.0,0.057]
[1767092677247,0.02644569,87978.0,87966.0,0.057]
[1767092677548,0.02644569,87977.0,87966.0,0.057]
[1767092677744,0.02644569,87976.0,87966.0,0.057]
[1767092677944,0.057,87979.0,87966.0,0.057]
[1767092678151,0.02644586,87978.0,87966.0,0.057]
[1767092678352,0.02644586,87977.0,87966.0,0.057]
[1767092678545,0.02644586,87976.0,87966.0,0.057]
[1767092678744,0.057,87979.0,87966.0,0.057]
[1767092678745,0.02644586,87975.0,87966.0,0.057]
[1767092678945,0.02644586,87974.0,87966.0,0.057]
[1767092679144,0.02644586,87973.0,87966.0,0.057]
[1767092679350,0.02644586,87972.0,87966.0,0.057]
[1767092679550,0.0113813,87976.0,87966.0,0.057]
[1767092679752,0.02644607,87975.0,87966.0,0.057]
[1767092679951,0.02644607,87974.0,87966.0,0.057]
[1767092680156,0.02644607,87973.0,87966.0,0.057]
[1767092680348,0.02644607,87972.0,87966.0,0.057]
[1767092680545,0.0113815,87974.0,87966.0,0.057]
[1767092680739,0.02642766,87973.0,87966.0,0.057]
[1767092680952,0.02642766,87972.0,87966.0,0.057]
[1767092681146,0.0113815,87974.0,87966.0,0.057]
[1767092681346,0.02642766,87973.0,87966.0,0.057]
[1767092681551,0.02642766,87972.0,87966.0,0.057]
[1767092681853,0.0113815,87974.0,87966.0,0.057]
[1767092682048,0.02642769,87973.0,87966.0,0.057]
[1767092682248,0.0113815,87974.0,87966.0,0.057]
[1767092682249,0.02642769,87972.0,87966.0,0.057]
[1767092682444,0.0113815,87974.0,87966.0,0.057]
[1767092682649,0.02642772,87973.0,87966.0,0.057]
[1767092682850,0.02642772,87972.0,87966.0,0.057]
[1767092683051,0.0113815,87974.0,87966.0,0.057]
[1767092683356,0.02642772,87973.0,87966.0,0.057]
[1767092683556,0.02642772,87972.0,87966.0,0.057]
[1767092683755,0.0113815,87974.0,87966.0,0.057]
[1767092684058,0.02642777,87973.0,87966.0,0.057]
[1767092684256,0.02642777,87972.0,87966.0,0.057]
[1767092684458,0.0113815,87974.0,87966.0,0.057]
[1767092684653,0.02642785,87973.0,87966.0,0.057]
[1767092684851,0.02642785,87972.0,87966.0,0.057]
[1767092685058,0.0113815,87974.0,87966.0,0.057]
[1767092685357,0.02642789,87973.0,87966.0,0.057]
[1767092685556,0.02642789,87972.0,87966.0,0.057]
[1767092685756,0.0113812,87977.0,87966.0,0.057]
[1767092685958,0.02642799,87976.0,87966.0,0.057]
[1767092686258,0.011381,87978.0,87966.0,0.057]